bitfinex/quotes_SOLUSD_20260306
["timestamp","ask_amount","ask_price","bid_price","bid_amount"]
[1772797571952,0.54423012,87.35,87.304,0.5938672]
[1772797572165,0.54423012,87.348,87.304,0.5938672]
[1772797572456,0.54423012,87.346,87.304,0.5938672]
[1772797572778,0.54423012,87.344,87.304,0.5938672]
[1772797572978,11.44924549,87.342,87.304,0.5938672]
[1772797573160,7.5163145,87.341,87.304,0.5938672]
[1772797573470,7.5163145,87.34,87.304,0.5938672]
[1772797573686,0.54423012,87.338,87.304,0.5938672]
[1772797573973,7.5163145,87.337,87.304,0.5938672]
[1772797574174,7.5163145,87.336,87.304,0.5938672]
[1772797574375,7.5163145,87.335,87.304,0.5938672]
[1772797574682,7.5163145,87.334,87.304,0.5938672]
[1772797574851,7.5163145,87.333,87.304,0.5938672]
[1772797575057,7.5163145,87.332,87.304,0.5938672]
[1772797575253,11.4480295,87.352,87.299,1e-08]
[1772797575761,0.54423012,87.351,87.299,1e-08]
[1772797576163,9.36333242,87.35,87.299,1e-08]
[1772797576478,9.90756254,87.351,87.299,1e-08]
[1772797576662,0.54423012,87.349,87.299,1e-08]
[1772797577176,11.44898333,87.344,87.299,1e-08]
[1772797577862,9.36333242,87.35,87.3,0.5938672]
[1772797578064,9.36333242,87.345,87.3,0.5938672]
[1772797578267,11.44832797,87.349,87.3,0.5938672]
[1772797578268,9.36333242,87.344,87.3,0.5938672]
[1772797578461,9.90756254,87.344,87.3,0.5938672]
[1772797578662,0.54423012,87.343,87.3,0.5938672]
[1772797579186,9.36333242,87.337,87.3,0.5938672]
[1772797579373,9.36333242,87.342,87.3,0.5938672]
[1772797579774,9.36333242,87.337,87.3,0.5938672]
[1772797580076,9.36333242,87.334,87.3,0.5938672]
[1772797580281,9.36333242,87.331,87.3,0.5938672]
[1772797580487,9.36333242,87.336,87.3,0.5938672]
[1772797580786,9.36333242,87.331,87.3,0.5938672]
[1772797581286,0.54423012,87.337,87.3,0.5938672]
[1772797581287,9.90756254,87.337,87.3,0.5938672]
[1772797581785,0.54423012,87.335,87.3,0.5938672]
[1772797582881,0.54423012,87.342,87.3,0.5938672]
[1772797583284,0.54423012,87.352,87.302,0.5938672]
[1772797585068,11.44806584,87.351,87.302,0.5938672]
[1772797585390,9.36333242,87.347,87.302,0.5938672]
[1772797585773,0.54423012,87.35,87.302,0.5938672]
[1772797585981,9.36333242,87.352,87.299,1e-08]
[1772797585982,9.36333242,87.352,87.304,0.5938672]
[1772797586186,11.44615798,87.366,87.309,0.5938672]
[1772797586670,11.44615798,87.366,87.311,0.5938672]
[1772797586987,11.44615798,87.366,87.313,0.5938672]
[1772797587376,7.6211716,87.365,87.313,0.5938672]
[1772797587570,11.44615798,87.366,87.299,0.14216158]
[1772797587571,7.6211716,87.364,87.315,0.5938672]
[1772797587766,7.6211716,87.363,87.319,0.5938672]
[1772797587966,7.6211716,87.362,87.32,0.5938672]
[1772797588166,7.6211716,87.361,87.32,0.5938672]
[1772797588391,7.6211716,87.36,87.32,0.5938672]
[1772797588683,7.6211716,87.359,87.32,0.5938672]
[1772797588887,0.54423012,87.371,87.318,0.5938672]
[1772797589278,0.54423012,87.371,87.32,0.5938672]
[1772797589775,0.54423012,87.371,87.322,0.5938672]
[1772797590579,11.98975998,87.371,87.322,0.5938672]
[1772797590800,0.54423012,87.37,87.322,0.5938672]
[1772797591176,0.54423012,87.368,87.322,0.5938672]
[1772797591667,0.63577191,87.359,87.299,1e-08]
[1772797593295,0.60811494,87.349,87.299,1e-08]
[1772797594502,0.75027651,87.338,87.299,1e-08]
[1772797594793,0.60811494,87.338,87.299,1e-08]
[1772797595301,0.60811494,87.336,87.299,1e-08]
[1772797598176,0.60811494,87.334,87.299,1e-08]
[1772797598792,0.60811494,87.329,87.299,1e-08]
[1772797599575,0.28432314,87.334,87.299,1e-08]
[1772797599794,0.60811494,87.333,87.299,1e-08]
[1772797600293,0.60811494,87.331,87.299,1e-08]
[1772797600987,40.07694773,87.332,87.299,1e-08]
[1772797600988,0.60811494,87.329,87.299,1e-08]
[1772797601184,0.60811494,87.327,87.299,1e-08]
[1772797601397,40.07694773,87.332,87.299,1e-08]
[1772797601398,0.60811494,87.325,87.299,1e-08]
[1772797601694,0.60811494,87.322,87.299,1e-08]
[1772797601901,0.60811494,87.34,87.299,1e-08]
[1772797602102,0.60811494,87.338,87.299,1e-08]
[1772797602308,0.60811494,87.336,87.299,1e-08]
[1772797602472,0.60811494,87.334,87.299,1e-08]
[1772797602670,0.60811494,87.332,87.299,1e-08]
[1772797602889,0.60811494,87.33,87.299,1e-08]
[1772797603089,0.60811494,87.328,87.299,1e-08]
[1772797603280,0.60811494,87.326,87.299,1e-08]
[1772797603486,0.60811494,87.324,87.299,1e-08]
[1772797603686,0.60811494,87.321,87.299,1e-08]
[1772797603896,7.61685314,87.32,87.299,1e-08]
[1772797604196,7.61685314,87.319,87.299,1e-08]
[1772797604386,7.61685314,87.318,87.299,1e-08]
[1772797604691,0.60811494,87.321,87.299,1e-08]
[1772797604897,0.60811494,87.321,87.267,3.69383402]
[1772797604898,0.60811494,87.309,87.261,0.59411524]
[1772797605093,0.60811494,87.307,87.261,0.59411524]
[1772797605291,0.60811494,87.305,87.261,0.59411524]
[1772797605495,0.60811494,87.303,87.261,0.59411524]
[1772797605790,0.60811494,87.3,87.263,0.59411524]
[1772797608401,0.60811494,87.298,87.265,0.59411524]
[1772797608695,0.60811494,87.296,87.248,0.59411524]
[1772797610397,0.60811494,87.294,87.254,0.59411524]
[1772797613198,0.60811494,87.292,87.256,0.59411524]
[1772797614203,0.60811494,87.307,87.259,0.59411524]
[1772797615203,0.60811494,87.307,87.264,0.59411524]
[1772797616606,12.06106285,87.314,87.264,0.59411524]
[1772797616808,0.60811494,87.313,87.264,0.59411524]
[1772797617303,0.60811494,87.311,87.266,0.59411524]
[1772797617504,0.60811494,87.309,87.266,0.59411524]
[1772797617686,0.60811494,87.307,87.266,0.59411524]
[1772797618004,0.60811494,87.305,87.266,0.59411524]
[1772797618208,0.60811494,87.303,87.266,0.59411524]
[1772797618383,0.60811494,87.301,87.266,0.59411524]
[1772797619006,0.60811494,87.301,87.264,11.45941407]
[1772797619393,0.60811494,87.299,87.264,0.59411524]
[1772797620590,11.45475372,87.3,87.257,0.59411524]
[1772797620591,0.60811494,87.297,87.257,0.59411524]
[1772797621704,0.66287751,87.295,87.259,0.65925903]
[1772797621907,0.66287751,87.304,87.259,0.65925903]
[1772797622085,0.66287751,87.302,87.259,0.65925903]
[1772797622284,0.66287751,87.3,87.259,0.65925903]
[1772797622489,0.66287751,87.298,87.259,0.65925903]
[1772797624208,0.66287751,87.296,87.261,0.65925903]
[1772797625190,0.66287751,87.294,87.261,0.65925903]
[1772797625396,0.66287751,87.292,87.261,0.65925903]
[1772797625598,0.66287751,87.29,87.261,0.65925903]
[1772797625797,0.66287751,87.288,87.261,0.65925903]
[1772797625992,0.66287751,87.288,87.262,11.45974192]
[1772797626209,12.11933723,87.287,87.262,11.45974192]
[1772797626517,12.11933723,87.287,87.262,12.11900095]
[1772797627011,57.25141718,87.335,87.263,0.65925903]
[1772797627309,0.66287751,87.306,87.263,0.65925903]
[1772797627503,0.66287751,87.304,87.263,0.65925903]
[1772797627707,0.66287751,87.302,87.263,0.65925903]
[1772797627919,7.59305057,87.301,87.265,0.65925903]
[1772797628116,7.59305057,87.3,87.265,0.65925903]
[1772797628410,7.59305057,87.299,87.265,0.65925903]
[1772797628592,7.59305057,87.298,87.265,0.65925903]
[1772797628790,11.45452109,87.302,87.265,0.65925903]
[1772797629001,7.59471082,87.301,87.265,0.65925903]
[1772797629193,7.59471082,87.3,87.265,0.65925903]
[1772797629407,7.59471082,87.299,87.265,0.65925903]
[1772797629605,7.59471082,87.298,87.265,0.65925903]
[1772797629812,7.59566607,87.297,87.265,0.65925903]
[1772797630017,0.66287751,87.295,87.266,11.45921664]
[1772797630215,19.05099724,87.296,87.266,11.45921664]
[1772797630216,0.66287751,87.293,87.266,11.45921664]
[1772797630400,0.66287751,87.291,87.266,11.45921664]
[1772797630603,0.66287751,87.289,87.262,0.65925903]
[1772797632214,8.27013631,87.288,87.263,11.4596106]
[1772797632422,7.6072588,87.287,87.263,11.4596106]
[1772797632624,0.66287751,87.288,87.264,0.65925903]
[1772797632922,0.66287751,87.294,87.264,0.65925903]
[1772797634022,12.11854978,87.293,87.266,0.65925903]
[1772797634526,0.66287751,87.292,87.266,0.65925903]
[1772797635218,0.66287751,87.292,87.267,11.45908533]
[1772797635414,0.66287751,87.292,87.267,12.11834436]
[1772797635614,0.66287751,87.292,87.268,0.65925903]
[1772797636729,0.66287751,87.29,87.268,0.65925903]
[1772797637027,0.66287751,87.29,87.267,11.45908533]
[1772797637204,0.66287751,87.288,87.262,11.45974192]
[1772797637408,11.45567306,87.293,87.263,0.65925903]
[1772797637909,0.66287751,87.292,87.263,0.65925903]
[1772797638305,0.66287751,87.292,87.258,11.46021046]
[1772797639222,0.66287751,87.29,87.258,11.46021046]
[1772797639525,0.66287751,87.29,87.256,11.46052993]
[1772797639912,0.66287751,87.289,87.257,0.65925903]
[1772797641530,11.45632847,87.288,87.259,0.65925903]
[1772797641736,28.63366857,87.31,87.259,0.65925903]
[1772797643813,0.14059255,87.309,87.261,0.65925903]
[1772797644921,0.14252766,87.306,87.263,0.65925903]
[1772797645226,0.14252766,87.304,87.263,0.65925903]
[1772797645424,0.1444455,87.302,87.263,0.65925903]
[1772797645620,0.1444455,87.3,87.263,0.65925903]
[1772797645927,0.1444455,87.3,87.249,51.52]
[1772797645928,0.1444455,87.298,87.249,52.17925903]
[1772797646106,0.1444455,87.295,87.25,0.65925903]
[1772797646311,0.14634115,87.292,87.25,0.65925903]
[1772797646512,0.14634115,87.29,87.25,0.65925903]
[1772797646712,0.14634115,87.288,87.25,0.65925903]
[1772797646929,0.14634115,87.285,87.25,0.65925903]
[1772797647127,0.14634115,87.283,87.25,0.65925903]
[1772797647325,0.14634115,87.281,87.25,0.65925903]
[1772797647523,0.14821868,87.279,87.25,0.65925903]
[1772797647825,0.14821868,87.277,87.251,11.46118669]
[1772797648028,0.14821868,87.275,87.25,0.65925903]
[1772797648231,40.09806841,87.286,87.249,51.52]
[1772797648232,0.14821868,87.273,87.249,51.52]
[1772797648423,0.15007266,87.271,87.249,51.52]
[1772797648626,0.15007266,87.269,87.249,51.52]
[1772797648814,7.79341756,87.268,87.249,51.52]
[1772797649013,7.6433449,87.267,87.249,62.9814475]
[1772797649226,19.2526342,87.266,87.249,51.52]
[1772797649425,7.79525025,87.265,87.249,51.52]
[1772797649735,7.6433449,87.264,87.249,51.52]
[1772797649916,7.6433449,87.263,87.249,51.52]
[1772797650120,7.6433449,87.262,87.249,51.52]
[1772797650316,7.6433449,87.261,87.249,51.52]
[1772797650515,7.6433449,87.26,87.249,51.52]
[1772797650833,7.6433449,87.259,87.249,51.52]
[1772797651031,0.15190535,87.265,87.249,51.52]
[1772797651032,7.6433449,87.258,87.249,51.52]
[1772797651230,7.6433449,87.257,87.249,51.52]
[1772797651440,7.6433449,87.256,87.249,51.52]
[1772797651618,11.45965279,87.263,87.249,51.52]
[1772797651619,7.6433449,87.255,87.249,51.52]
[1772797651932,28.64426699,87.278,87.25,11.46131805]
[1772797651933,0.15726726,87.272,87.25,11.46131805]
[1772797652513,9.55302323,87.29,87.251,0.64195678]
[1772797652719,11.45599247,87.291,87.251,0.64195678]
[1772797652927,11.45514737,87.297,87.253,0.64195678]
[1772797653335,11.45337027,87.311,87.256,0.64195678]
[1772797654140,11.61580725,87.311,87.256,0.64195678]
[1772797654730,11.45337027,87.311,87.256,0.64195678]
[1772797654938,0.16411497,87.31,87.256,0.64195678]
[1772797655142,0.16411497,87.308,87.258,0.64195678]
[1772797657232,11.62054474,87.313,87.26,0.64195678]
[1772797657434,0.16906847,87.312,87.26,0.64195678]
[1772797659339,0.1722657,87.31,87.262,0.64195678]
[1772797659519,0.1722657,87.308,87.254,0.64195678]
[1772797662443,0.1769541,87.305,87.256,0.64195678]
[1772797663127,0.1769541,87.299,87.256,0.64195678]
[1772797665326,0.18147916,87.297,87.257,11.46039859]
[1772797667245,0.18439582,87.295,87.255,28.6516532]
[1772797667438,0.18439582,87.289,87.25,11.46131805]
[1772797667642,0.18439582,87.289,87.249,51.52]
[1772797667844,0.18439582,87.289,87.238,15.23783242]
[1772797667845,0.18439582,87.269,87.238,15.23783242]
[1772797668546,0.18583438,87.268,87.217,0.64195678]
[1772797668848,0.18583438,87.259,87.217,0.64195678]
[1772797669434,4.12277979,87.26,87.219,0.64195678]
[1772797669435,0.18725107,87.257,87.219,0.64195678]
[1772797669748,0.18725107,87.249,87.21,0.74195678]
[1772797670251,0.18725107,87.249,87.215,0.64195678]
[1772797671748,40.09944662,87.283,87.217,0.64195678]
[1772797671951,0.19004637,87.265,87.217,0.64195678]
[1772797672765,0.19142023,87.278,87.22,0.64195678]
[1772797673246,11.45580351,87.292,87.22,0.64195678]
[1772797673442,11.64858741,87.292,87.22,0.64195678]
[1772797673831,11.64858741,87.292,87.225,0.64195678]
[1772797674549,0.1927839,87.292,87.227,0.64195678]
[1772797674754,0.19413128,87.299,87.229,0.64195678]
[1772797675845,0.19545518,87.297,87.233,3.69383402]
[1772797676042,0.19545518,87.297,87.234,0.64195678]
[1772797676865,0.1967736,87.312,87.236,0.64195678]
[1772797677156,0.1967736,87.308,87.238,0.64195678]
[1772797678857,0.1993419,87.306,87.243,0.64195678]
[1772797680255,0.20184177,87.304,87.245,0.64195678]
[1772797683165,0.20548982,87.302,87.247,0.67738083]
[1772797687652,0.2113099,87.3,87.249,0.67738083]
[1772797689644,0.21356063,87.298,87.251,0.67738083]
[1772797691765,0.21356063,87.298,87.253,0.67738083]
[1772797693264,0.21683292,87.296,87.253,0.67738083]
[1772797694460,0.21683292,87.296,87.255,0.67738083]
[1772797695872,0.2199824,87.302,87.255,0.67738083]
[1772797696868,0.22100714,87.3,87.257,0.67738083]
[1772797698470,0.22202082,87.306,87.257,0.67738083]
[1772797698770,23.10018835,87.32,87.265,0.72092109]
[1772797699067,11.4521989,87.32,87.265,0.72092109]
[1772797699468,40.08252414,87.32,87.265,0.72092109]
[1772797699658,11.4521989,87.32,87.265,0.72092109]
[1772797700059,22.74472395,87.32,87.265,0.72092109]
[1772797700450,11.4521989,87.32,87.265,0.72092109]
[1772797701653,22.63480988,87.32,87.267,0.72092109]
[1772797701855,0.42648471,87.319,87.267,0.72092109]
[1772797703575,0.42648471,87.317,87.269,0.72092109]
[1772797705765,11.18261098,87.32,87.271,0.72092109]
[1772797705766,40.08429153,87.316,87.271,0.72092109]
[1772797705977,0.42648471,87.315,87.271,0.72092109]
[1772797706165,0.42648471,87.315,87.27,11.45869141]
[1772797706354,0.42648471,87.309,87.27,11.45869141]
[1772797708181,0.42648471,87.307,87.267,0.72092109]
[1772797709186,11.18261098,87.32,87.267,0.72092109]
[1772797709187,11.45226124,87.319,87.267,0.72092109]
[1772797710286,11.45226124,87.319,87.269,0.72092109]
[1772797710986,0.42648471,87.309,87.263,0.72092109]
[1772797711988,0.42648471,87.309,87.256,0.72092109]
[1772797712179,0.42648471,87.297,87.251,11.46118669]
[1772797712379,0.42648471,87.297,87.252,0.72092109]
[1772797714691,0.42648471,87.295,87.253,11.46092397]
[1772797715063,0.42648471,87.295,87.254,0.72092109]
[1772797715384,0.02092411,87.294,87.254,0.72092109]
[1772797716585,0.02186543,87.287,87.249,11.46139727]
[1772797716892,0.02186543,87.286,87.249,11.46139727]
[1772797718891,0.02369381,87.279,87.243,11.46222769]
[1772797719099,40.09806841,87.286,87.239,51.54]
[1772797719100,0.02369381,87.269,87.239,51.54]
[1772797719386,0.02369381,87.268,87.239,51.51542796]
[1772797720887,0.42648471,87.267,87.239,51.51542796]
[1772797721187,0.42648471,87.267,87.24,0.73320711]
[1772797721387,0.42648471,87.267,87.239,51.51542796]
[1772797721582,40.10633908,87.268,87.239,51.51542796]
[1772797721775,21.9,87.26,87.239,52.24863507]
[1772797722485,11.45685348,87.284,87.241,0.73320711]
[1772797723094,0.28432314,87.283,87.243,0.73320711]
[1772797723389,40.09209726,87.299,87.243,0.73320711]
[1772797723584,0.42648471,87.289,87.243,0.73320711]
[1772797723991,4.12267827,87.29,87.243,0.73320711]
[1772797724190,0.14216157,87.289,87.243,0.73320711]
[1772797724393,0.42648471,87.289,87.243,0.73320711]
[1772797724976,0.42648471,87.287,87.245,0.73320711]
[1772797727593,0.42648471,87.285,87.247,0.73320711]
[1772797729994,0.28432314,87.283,87.249,0.73320711]
[1772797730176,0.28432314,87.283,87.247,12.19490608]
[1772797730376,0.28432314,87.283,87.248,0.73320711]
[1772797731993,62.2,87.287,87.25,0.73320711]
[1772797731994,11.45711601,87.282,87.25,0.73320711]
[1772797733695,0.14216157,87.281,87.239,51.51542796]
[1772797733896,0.42648471,87.279,87.24,11.46263182]
[1772797734289,0.42648471,87.277,87.24,12.19583893]
[1772797735681,0.42648471,87.277,87.241,0.73320711]
[1772797736200,11.45709618,87.283,87.241,0.73320711]
[1772797736395,11.45709618,87.283,87.243,0.73320711]
[1772797737286,11.8817633,87.296,87.243,0.73320711]
[1772797739292,11.8817633,87.296,87.245,0.73320711]
[1772797740109,0.42648471,87.3,87.245,0.73320711]
[1772797740911,11.45469964,87.301,87.245,0.73320711]
[1772797741211,0.42648471,87.306,87.247,0.73320711]
[1772797743610,11.4540977,87.305,87.249,0.73320711]
[1772797743907,11.45226124,87.319,87.252,0.73320711]
[1772797744815,11.45180893,87.323,87.252,0.73320711]
[1772797745011,11.4521968,87.32,87.252,0.73320711]
[1772797745811,0.02121474,87.323,87.254,0.73320711]
[1772797746889,0.02188921,87.309,87.254,0.73320711]
[1772797747994,0.02188921,87.309,87.255,40.11231448]
[1772797748207,0.02188921,87.309,87.256,0.73320711]
[1772797749614,0.02383293,87.308,87.256,0.73320711]
[1772797751213,0.02447738,87.289,87.252,0.73320711]
[1772797751418,0.02459018,87.288,87.252,0.73320711]
[1772797752008,0.02459018,87.299,87.252,0.73320711]
[1772797752317,0.02459018,87.298,87.252,0.73320711]
[1772797753427,0.02459018,87.298,87.254,0.73320711]
[1772797754000,0.02480539,87.289,87.254,0.73320711]
[1772797754516,0.02490552,87.288,87.254,0.73320711]
[1772797754720,0.42648471,87.289,87.235,28.65807984]
[1772797754721,0.02490552,87.279,87.235,28.65807984]
[1772797755017,0.02490552,87.268,87.226,0.73320711]
[1772797755207,0.42648471,87.269,87.227,11.46434016]
[1772797755208,11.48504143,87.259,87.227,11.46434016]
[1772797755404,0.02501475,87.258,87.227,12.19754727]
[1772797755625,0.02501475,87.258,87.227,11.46434016]
[1772797756601,0.02501475,87.258,87.222,0.73320711]
[1772797758719,0.02501475,87.258,87.224,0.73320711]
[1772797759125,0.02534307,87.257,87.224,0.73320711]
[1772797761715,0.02565013,87.255,87.226,0.73320711]
[1772797762933,0.42648471,87.256,87.226,0.73320711]
[1772797763224,11.4598836,87.261,87.226,0.73320711]
[1772797763825,0.02584534,87.261,87.228,0.73320711]
[1772797765232,11.45882272,87.269,87.228,0.73320711]
[1772797765429,0.02603563,87.267,87.228,0.73320711]
[1772797766921,0.02612254,87.265,87.23,0.73320711]
[1772797767517,0.02612254,87.265,87.229,11.46407731]
[1772797767921,0.02612254,87.265,87.23,0.73320711]
[1772797768732,0.02629909,87.263,87.232,0.73320711]
[1772797771431,0.02656691,87.262,87.234,0.73320711]
[1772797771609,0.02666252,87.259,87.234,0.73320711]
[1772797773623,11.4596106,87.263,87.236,0.73320711]
[1772797774317,11.48658726,87.263,87.236,0.73320711]
[1772797775119,11.4596106,87.263,87.236,0.73320711]
[1772797775439,4.15486486,87.27,87.236,0.73320711]
[1772797775744,0.02705959,87.278,87.238,0.73320711]
[1772797775924,11.45750982,87.279,87.238,0.73320711]
[1772797776239,11.45696351,87.284,87.238,0.73320711]
[1772797776942,0.02713856,87.283,87.238,0.73320711]
[1772797777737,0.02713856,87.283,87.24,0.73320711]
[1772797778716,0.02713856,87.283,87.242,0.73320711]
[1772797778916,11.45685348,87.284,87.242,0.73320711]
[1772797779126,11.45567047,87.294,87.242,0.73320711]
[1772797779336,11.48302849,87.294,87.242,0.73320711]
[1772797779541,0.02735802,87.293,87.242,0.73320711]
[1772797779732,0.02735802,87.289,87.242,0.73320711]
[1772797780939,0.02735802,87.289,87.244,0.73320711]
[1772797781520,0.02750222,87.279,87.244,0.73320711]
[1772797781922,0.02750222,87.268,87.222,0.73320711]
[1772797782129,0.02750222,87.259,87.222,0.73320711]
[1772797783340,0.02766285,87.258,87.224,0.73320711]
[1772797784041,0.02766285,87.271,87.224,0.73320711]
[1772797785843,0.42648471,87.276,87.226,0.73320711]
[1772797786045,11.45737855,87.28,87.226,0.73320711]
[1772797787448,11.48532586,87.28,87.226,0.73320711]
[1772797787825,0.42648471,87.285,87.228,0.73320711]
[1772797788030,0.02794731,87.284,87.228,0.73320711]
[1772797788448,0.0280098,87.279,87.228,0.73320711]
[1772797788938,0.42648471,87.285,87.228,0.73320711]
[1772797789934,0.0280098,87.293,87.23,0.73320711]
[1772797790250,0.02807186,87.291,87.23,0.73320711]
[1772797791624,0.02807186,87.291,87.233,0.73320711]
[1772797792030,0.42648471,87.297,87.235,0.73320711]
[1772797792031,0.42648471,87.295,87.235,0.73320711]
[1772797792853,0.45475869,87.295,87.235,0.73320711]
[1772797793054,4.1278882,87.29,87.235,0.73320711]
[1772797793252,0.02827398,87.289,87.235,0.73320711]
[1772797794950,0.02840767,87.288,87.237,0.73320711]
[1772797797539,0.02840767,87.288,87.239,0.73320711]
[1772797797741,0.0286017,87.293,87.239,0.73320711]
[1772797798633,0.02866275,87.289,87.239,0.73320711]
[1772797799633,0.02866275,87.289,87.224,3.69383402]
[1772797799634,0.02873171,87.288,87.241,0.73320711]
[1772797801236,34.39775268,87.43,87.24,40.11921137]
[1772797801237,0.02879263,87.309,87.244,0.73320711]
[1772797801439,0.02884827,87.313,87.244,0.73320711]
[1772797801638,0.02890459,87.299,87.246,0.73320711]
[1772797802941,0.02890459,87.299,87.248,0.73320711]
[1772797803137,0.02896133,87.306,87.248,0.73320711]
[1772797805058,0.02907108,87.304,87.25,0.73320711]
[1772797805359,4.1278882,87.3,87.25,0.73320711]
[1772797805657,0.02912583,87.299,87.25,0.73320711]
[1772797808638,0.02929034,87.312,87.252,0.73320711]
[1772797809060,0.02929034,87.309,87.252,0.73320711]
[1772797809652,0.02934863,87.299,87.252,0.73320711]
[1772797810555,0.02934863,87.299,87.254,0.73320711]
[1772797812040,0.42648471,87.307,87.254,0.73320711]
[1772797812252,0.02892763,87.306,87.254,0.73320711]
[1772797813060,0.02847096,87.304,87.256,0.73320711]
[1772797815367,0.02710567,87.303,87.258,0.73320711]
[1772797815551,0.02710567,87.298,87.258,0.73320711]
[1772797815964,0.02710567,87.279,87.244,0.73320711]
[1772797816871,0.02710567,87.279,87.246,11.46184352]
[1772797817350,0.02710567,87.279,87.247,0.73320711]
[1772797818947,0.02710567,87.279,87.248,11.46158078]
[1772797819155,0.02710567,87.279,87.249,0.73320711]
[1772797820868,0.0249368,87.278,87.249,0.73320711]
[1772797821369,0.02452628,87.276,87.251,0.73320711]
[1772797822353,0.02452628,87.282,87.251,0.73320711]
[1772797823264,0.02452628,87.282,87.253,0.73320711]
[1772797823961,0.0237035,87.275,87.235,0.73320711]
[1772797824756,62.2,87.281,87.235,0.73320711]
[1772797825278,11.45653433,87.287,87.235,0.73320711]
[1772797825654,11.45653433,87.287,87.224,28.66151617]
[1772797825655,0.02329114,87.289,87.237,0.73320711]
[1772797826173,11.4544375,87.303,87.237,0.73320711]
[1772797826471,0.02289626,87.302,87.237,0.73320711]
[1772797826675,0.02250622,87.289,87.237,0.73320711]
[1772797827766,0.02250622,87.289,87.232,45.85457069]
[1772797827767,0.02250622,87.289,87.239,0.73320711]
[1772797829070,0.02250622,87.289,87.238,97.43460418]
[1772797829071,0.02172297,87.318,87.242,0.73320711]
[1772797829779,0.02172297,87.318,87.241,3.69383402]
[1772797829780,0.02133824,87.314,87.244,0.73320711]
[1772797829957,0.02133824,87.308,87.244,0.73320711]
[1772797830152,11.45265472,87.316,87.244,0.73320711]
[1772797830359,0.0209598,87.314,87.244,0.73320711]
[1772797830966,0.0209598,87.309,87.244,0.73320711]
[1772797831166,0.0209598,87.299,87.244,0.73320711]
[1772797831374,0.02058611,87.289,87.244,0.73320711]
[1772797831873,0.02021713,87.288,87.246,0.73320711]
[1772797833077,0.42648471,87.279,87.245,11.46197489]
[1772797833458,0.42648471,87.288,87.246,0.73320711]
[1772797833969,4.12533023,87.28,87.247,11.46171215]
[1772797834153,0.42648471,87.279,87.243,11.46214841]
[1772797834570,0.42648471,87.279,87.243,12.19535552]
[1772797835277,0.42648471,87.279,87.244,0.73320711]
[1772797835980,0.42648471,87.277,87.244,0.73320711]
[1772797837179,0.42648471,87.277,87.239,11.46266545]
[1772797837373,0.42648471,87.277,87.239,12.19587256]
[1772797837575,0.42648471,87.277,87.24,0.73320711]
[1772797837967,0.42648471,87.289,87.242,0.73320711]
[1772797838268,0.14216157,87.279,87.241,11.46250042]
[1772797838472,0.42648471,87.279,87.241,11.46250042]
[1772797839188,0.42648471,87.277,87.237,11.463026]
[1772797839478,0.42648471,87.277,87.237,12.19623311]
[1772797839965,0.42648471,87.277,87.238,0.73320711]
[1772797842082,0.42648471,87.275,87.239,11.46276321]
[1772797842279,0.42648471,87.275,87.24,0.73320711]
[1772797844186,11.45816623,87.274,87.242,0.73320711]
[1772797845386,11.45816623,87.274,87.244,0.73320711]
[1772797848361,11.45816623,87.274,87.246,0.73320711]
[1772797848864,0.42648471,87.269,87.211,0.73320711]
[1772797849281,0.42648471,87.269,87.218,0.73320711]
[1772797850775,0.42648471,87.267,87.22,0.73320711]
[1772797852669,0.42648471,87.265,87.222,0.73320711]
[1772797856386,0.14216157,87.259,87.222,0.73320711]
[1772797856566,0.42648471,87.259,87.224,0.73320711]
[1772797856973,73.65947928,87.264,87.224,0.73320711]
[1772797857990,102.30817748,87.264,87.226,0.73320711]
[1772797858371,73.65947928,87.264,87.226,0.73320711]
[1772797858571,11.45947928,87.264,87.226,0.73320711]
[1772797859266,4.12533023,87.28,87.226,0.73320711]
[1772797859495,0.42648471,87.278,87.226,0.73320711]
[1772797860389,0.42648471,87.276,87.228,0.73320711]
[1772797861389,0.42648471,87.269,87.222,0.73320711]
[1772797862594,0.42648471,87.267,87.224,0.73320711]
[1772797862893,0.42648471,87.267,87.223,11.46486591]
[1772797862894,4.12533023,87.29,87.245,0.73320711]
[1772797863274,4.12533023,87.28,87.224,0.73320711]
[1772797863477,4.12533023,87.27,87.224,0.73320711]
[1772797863781,4.12533023,87.26,87.224,0.73320711]
[1772797863981,4.12533023,87.27,87.224,0.73320711]
[1772797864377,4.12533023,87.3,87.211,0.73320711]
[1772797864378,4.12533023,87.25,87.211,0.73320711]
[1772797864569,40.11507294,87.249,87.211,0.73320711]
[1772797864788,0.42648471,87.248,87.211,0.73320711]
[1772797865299,0.42648471,87.248,87.211,12.1996408]
[1772797865474,0.42648471,87.248,87.212,0.73320711]
[1772797866478,4.12533023,87.24,87.21,0.1]
[1772797866796,40.11967124,87.239,87.21,0.83320711]
[1772797868573,51.79977265,87.301,87.212,0.73320711]
[1772797868574,11.45882272,87.269,87.212,0.73320711]
[1772797868814,0.42648471,87.268,87.212,0.73320711]
[1772797869592,4.12533023,87.26,87.212,0.73320711]
[1772797869988,0.42648471,87.259,87.212,0.73320711]
[1772797870794,0.42648471,87.257,87.214,0.73320711]
[1772797871786,0.42648471,87.257,87.15,91.89471033]